bitfinex/quotes_BTCUSD_20241130
["timestamp","ask_amount","ask_price","bid_price","bid_amount"]
[1732925597386,0.0027308,97336.0,97335.0,0.43081862]
[1732925599140,0.0027308,97336.0,97335.0,0.43015916]
[1732925604120,0.0027308,97336.0,97335.0,0.58015916]
[1732925606648,0.0027308,97336.0,97335.0,0.43015916]
[1732925608172,0.0027308,97336.0,97335.0,0.58015916]
[1732925612467,0.0027308,97336.0,97335.0,0.52475916]
[1732925612710,0.0027308,97336.0,97335.0,0.53475916]
[1732925613841,0.0027308,97336.0,97335.0,0.48479421]
[1732925615136,0.0027308,97336.0,97335.0,0.53485456]
[1732925615578,0.0027308,97336.0,97335.0,0.52485456]
[1732925615832,0.0027308,97336.0,97335.0,0.53485456]
[1732925616949,0.0027308,97336.0,97335.0,0.29341402]
[1732925618539,0.0027308,97336.0,97335.0,0.28262447]
[1732925620398,0.0027308,97336.0,97335.0,0.16988747]
[1732925620830,0.1054668,97336.0,97335.0,0.15993668]
[1732925622796,0.1054668,97336.0,97335.0,0.15293668]
[1732925623003,0.1054668,97336.0,97335.0,0.15993668]
[1732925623682,0.1044668,97336.0,97335.0,0.15093668]
[1732925624314,0.1054668,97336.0,97335.0,0.15993668]
[1732925624749,0.1054668,97336.0,97335.0,0.15991628]
[1732925625443,0.1054668,97336.0,97335.0,0.12913031]
[1732925625690,0.1507668,97336.0,97335.0,0.03623589]
[1732925625914,0.2332668,97336.0,97335.0,0.01698191]
[1732925630197,0.1305308,97336.0,97315.0,0.03699425]
[1732925630424,0.102747,97327.0,97317.0,0.102756]
[1732925630635,0.102747,97327.0,97315.0,0.00059836]
[1732925630636,0.205475,97335.0,97318.0,0.12387782]
[1732925630855,0.1305308,97336.0,97318.0,0.12387782]
[1732925630856,0.1305308,97336.0,97319.0,0.01921408]
[1732925631073,0.1305308,97336.0,97317.0,0.102756]
[1732925631074,0.102748,97326.0,97320.0,0.12387774]
[1732925631314,0.1305308,97336.0,97321.0,0.01921408]
[1732925631526,0.1305308,97336.0,97316.0,0.205514]
[1732925631527,0.1295308,97336.0,97322.0,0.12387774]
[1732925631714,0.102748,97326.0,97323.0,0.01921408]
[1732925631955,0.1305308,97336.0,97324.0,0.12205929]
[1732925632144,0.102747,97326.0,97325.0,0.02103253]
[1732925632345,0.103747,97326.0,97325.0,0.12205929]
[1732925633040,0.104747,97326.0,97325.0,0.12205929]
[1732925633248,0.103747,97326.0,97325.0,0.12205929]
[1732925634575,0.105747,97326.0,97325.0,0.13005929]
[1732925636740,0.105747,97326.0,97325.0,0.13005265]
[1732925637192,0.105747,97326.0,97325.0,0.11084521]
[1732925638267,0.105747,97326.0,97325.0,0.13005254]
[1732925640026,0.105747,97326.0,97325.0,0.13005667]
[1732925642640,0.003,97326.0,97325.0,0.13092197]
[1732925642820,0.00293448,97326.0,97325.0,0.13092197]
[1732925643025,0.10568148,97326.0,97325.0,0.13092197]
[1732925643681,0.00293448,97326.0,97325.0,0.13092197]
[1732925643892,0.10568148,97326.0,97325.0,0.16167684]
[1732925644109,0.10568148,97326.0,97325.0,0.13092197]
[1732925644339,0.00293448,97326.0,97325.0,0.31126997]
[1732925644561,0.00293448,97326.0,97325.0,0.34202484]
[1732925645211,0.00293448,97326.0,97325.0,0.31126997]
[1732925645434,0.00293448,97326.0,97325.0,0.29205851]
[1732925645658,0.00293448,97326.0,97325.0,0.31128615]
[1732925646352,0.00293448,97326.0,97325.0,0.34205254]
[1732925648556,0.00293448,97326.0,97325.0,0.29205851]
[1732925648793,0.00293448,97326.0,97325.0,0.3420873]
[1732925649562,0.00293448,97326.0,97325.0,0.45958444]
[1732925649772,0.00293448,97326.0,97325.0,0.49655825]
[1732925650004,0.00293448,97326.0,97325.0,0.4220873]
[1732925650443,0.00193448,97326.0,97325.0,0.44861836]
[1732925650650,0.00193448,97326.0,97325.0,0.45761836]
[1732925651101,0.0017308,97336.0,97335.0,0.102737]
[1732925651311,0.0017308,97336.0,97335.0,0.25742922]
[1732925651515,0.0017308,97336.0,97335.0,0.255611]
[1732925652590,0.0027308,97336.0,97335.0,0.264611]
[1732925653215,0.0027308,97336.0,97335.0,0.270611]
[1732925654040,0.0027308,97336.0,97335.0,0.167874]
[1732925654735,0.0027308,97336.0,97335.0,0.270611]
[1732925654974,0.0027308,97336.0,97335.0,0.167874]
[1732925655195,0.0027308,97336.0,97335.0,0.27059115]
[1732925655892,0.0027308,97336.0,97335.0,0.1993567]
[1732925656313,0.1054668,97336.0,97335.0,0.16785415]
[1732925656540,0.0027308,97336.0,97335.0,0.16785415]
[1732925657199,0.1054668,97336.0,97335.0,0.16785415]
[1732925657431,0.1054668,97336.0,97335.0,0.13707942]
[1732925657432,0.2277668,97336.0,97335.0,0.13707942]
[1732925660126,0.1506668,97336.0,97335.0,0.13707942]
[1732925667888,0.0479308,97336.0,97335.0,0.13707942]
[1732925668101,0.1506668,97336.0,97335.0,0.13707942]
[1732925668581,0.1506668,97336.0,97335.0,0.16787054]
[1732925670721,0.1054668,97336.0,97335.0,0.16787054]
[1732925671641,0.0027308,97336.0,97335.0,0.16787054]
[1732925671881,0.1054668,97336.0,97335.0,0.16787054]
[1732925672311,0.1054668,97336.0,97335.0,0.35130754]
[1732925672312,0.0027308,97336.0,97335.0,0.35130754]
[1732925672749,0.0027308,97336.0,97335.0,0.37430754]
[1732925672981,0.0027308,97336.0,97335.0,0.38430754]
[1732925673211,0.0027308,97336.0,97335.0,0.41509624]
[1732925673427,0.0027308,97336.0,97335.0,0.38430754]
[1732925674130,0.0027308,97336.0,97335.0,0.38508883]
[1732925674600,0.0027308,97336.0,97335.0,0.36208883]
[1732925675488,0.0027308,97336.0,97335.0,0.39508883]
[1732925675731,0.0027308,97336.0,97335.0,0.40508883]
[1732925675945,0.0027308,97336.0,97335.0,0.39508883]
[1732925677537,0.0027308,97336.0,97335.0,0.3450635]
[1732925678411,0.0027308,97336.0,97335.0,0.39505344]
[1732925684501,0.0027308,97336.0,97335.0,0.39501943]
[1732925687511,0.0027308,97336.0,97335.0,0.39500256]
[1732925687782,0.0027308,97336.0,97335.0,0.30430256]
[1732925688017,0.0493308,97336.0,97335.0,0.16778427]
[1732925688227,0.1520668,97336.0,97335.0,0.16778427]
[1732925688457,0.0493308,97336.0,97335.0,0.16778427]
[1732925688921,0.1520668,97336.0,97335.0,0.16778427]
[1732925689592,0.0493308,97336.0,97335.0,0.16778427]
[1732925690032,0.1520668,97336.0,97335.0,0.16778427]
[1732925690485,0.0493308,97336.0,97335.0,0.16778427]
[1732925690705,0.1520668,97336.0,97335.0,0.16778427]
[1732925691150,0.0493308,97336.0,97335.0,0.16778427]
[1732925692730,0.0493308,97336.0,97335.0,0.27052127]
[1732925692935,0.0493308,97336.0,97335.0,0.16778427]
[1732925693792,0.0493308,97336.0,97335.0,0.2062155]
[1732925694006,0.0493308,97336.0,97335.0,0.16778427]
[1732925694454,0.0493308,97336.0,97335.0,0.2062155]
[1732925696583,0.0493308,97336.0,97335.0,0.3089525]
[1732925697617,0.0027308,97336.0,97335.0,0.3089525]
[1732925700584,0.0027308,97336.0,97335.0,0.22058221]
[1732925702326,0.0493308,97336.0,97335.0,0.22058221]
[1732925702982,0.0493308,97336.0,97335.0,0.11784521]
[1732925704774,0.0493308,97336.0,97335.0,0.22058221]
[1732925706330,0.0027308,97336.0,97335.0,0.22058221]
[1732925708905,0.0027308,97336.0,97335.0,0.11784521]
[1732925708906,0.1054668,97336.0,97335.0,0.11784521]
[1732925709152,0.0027308,97336.0,97335.0,0.11784521]
[1732925709853,0.1054668,97336.0,97335.0,0.11784521]
[1732925710108,0.0518308,97336.0,97335.0,0.11784521]
[1732925710573,0.0027308,97336.0,97335.0,0.11784521]
[1732925710810,0.0027308,97336.0,97335.0,0.22058221]
[1732925714511,0.0027308,97336.0,97335.0,0.11784521]
[1732925714721,0.0027308,97336.0,97335.0,0.22058221]
[1732925715484,0.00731193,97336.0,97335.0,0.22058221]
[1732925715697,0.0027308,97336.0,97335.0,0.22058221]
[1732925715914,0.00731193,97336.0,97335.0,0.22058221]
[1732925716136,0.0027308,97336.0,97335.0,0.22058221]
[1732925716351,0.00731193,97336.0,97335.0,0.22058221]
[1732925716568,0.0027308,97336.0,97335.0,0.22058221]
[1732925718605,0.0027308,97336.0,97335.0,0.33578221]
[1732925719091,0.0491,97355.0,97344.0,0.102727]
[1732925719092,0.205442,97351.0,97344.0,0.102727]
[1732925719302,0.102719,97353.0,97348.0,0.102723]
[1732925719518,0.00458515,97350.0,97349.0,0.10284521]
[1732925719744,0.0491,97355.0,97351.0,0.10272]
[1732925719982,0.0491,97355.0,97352.0,0.10284521]
[1732925720669,0.0491,97355.0,97352.0,0.10290498]
[1732925721339,0.0491,97355.0,97352.0,0.20562398]
[1732925722013,0.0491,97355.0,97354.0,0.102717]
[1732925722260,0.102713,97359.0,97354.0,0.20556221]
[1732925722471,0.1246,97361.0,97355.0,0.20556121]
[1732925722739,0.102714,97358.0,97355.0,0.10284521]
[1732925723170,0.102713,97358.0,97355.0,0.10284521]
[1732925723379,0.102712,97359.0,97355.0,0.10284521]
[1732925723595,0.102714,97358.0,97355.0,0.10284521]
[1732925723815,0.0491,97361.0,97355.0,0.10284521]
[1732925724056,0.2071454,97364.0,97355.0,0.10284521]
[1732925724057,0.0017304,97364.0,97363.0,0.102708]
[1732925724302,0.0017304,97364.0,97363.0,0.20555321]
[1732925724732,0.0017304,97364.0,97363.0,0.10284521]
[1732925725603,0.0027304,97364.0,97363.0,0.10884521]
[1732925726379,0.1054374,97364.0,97363.0,0.11184521]
[1732925726894,0.1054374,97364.0,97363.0,0.006]
[1732925726895,0.2293374,97364.0,97363.0,0.006]
[1732925727210,0.2293374,97364.0,97352.0,5.977e-05]
[1732925727211,0.048,97363.0,97352.0,5.977e-05]
[1732925727433,0.048,97363.0,97353.0,0.10284521]
[1732925727683,0.102715,97357.0,97353.0,0.10284521]
[1732925727904,0.102717,97355.0,97353.0,0.10284521]
[1732925728117,0.205421,97361.0,97353.0,0.10284521]
[1732925728350,0.102715,97357.0,97353.0,0.10284521]
[1732925728568,0.102715,97356.0,97353.0,0.10284521]
[1732925728795,0.102714,97358.0,97353.0,0.10884521]
[1732925729011,0.102715,97357.0,97353.0,0.10884521]
[1732925729275,0.205421,97361.0,97353.0,0.10884521]
[1732925729276,0.102716,97356.0,97353.0,0.10884521]
[1732925729757,0.102716,97356.0,97353.0,0.11384521]
[1732925730230,0.102717,97355.0,97353.0,0.10884521]
[1732925730469,0.102715,97357.0,97353.0,0.12084521]
[1732925730696,0.102715,97357.0,97353.0,0.10784521]
[1732925730924,0.001,97356.0,97353.0,0.11684521]
[1732925731357,0.102715,97357.0,97353.0,0.10784521]
[1732925731594,0.102715,97357.0,97353.0,0.11684521]
[1732925731595,0.001,97355.0,97353.0,0.11684521]
[1732925731816,0.001,97355.0,97353.0,0.10284521]
[1732925732023,0.00900502,97354.0,97353.0,0.10284521]
[1732925732279,0.00900502,97354.0,97353.0,0.11684521]
[1732925732510,0.00900502,97354.0,97353.0,0.21956321]
[1732925732979,0.001,97355.0,97353.0,0.21956321]
[1732925733194,0.001,97355.0,97353.0,0.11184521]
[1732925733450,0.102715,97357.0,97353.0,0.10884521]
[1732925733912,0.205424,97360.0,97353.0,0.10884521]
[1732925733913,0.0017308,97355.0,97353.0,0.21156321]
[1732925734122,0.0017308,97355.0,97353.0,0.22056321]
[1732925734410,0.0017308,97355.0,97353.0,0.11784521]
[1732925734614,0.102717,97354.0,97353.0,0.11784521]
[1732925734826,0.1044478,97355.0,97353.0,0.11184521]
[1732925735045,0.1044478,97355.0,97353.0,0.09288521]
[1732925735264,0.0017308,97355.0,97353.0,0.10688521]
[1732925735472,0.0027308,97355.0,97353.0,0.10688521]
[1732925736540,0.0017308,97355.0,97353.0,0.09788521]
[1732925736748,0.0017308,97355.0,97353.0,0.10688521]
[1732925736957,0.001,97354.0,97353.0,0.10688521]
[1732925737190,0.001,97354.0,97353.0,0.09788521]
[1732925737406,0.001,97354.0,97353.0,0.10688521]
[1732925738310,0.0027308,97355.0,97353.0,0.09788521]
[1732925738311,0.0017308,97355.0,97353.0,0.09788521]
[1732925738529,0.0017308,97355.0,97353.0,0.09288521]
[1732925738736,0.0017308,97355.0,97353.0,0.09888521]
[1732925739280,0.001,97354.0,97353.0,0.10188521]
[1732925739376,0.103717,97354.0,97353.0,0.10188521]
[1732925739588,0.103717,97354.0,97353.0,0.10688521]
[1732925739589,0.001,97354.0,97353.0,0.10688521]
[1732925740286,0.1044478,97355.0,97353.0,0.09288521]
[1732925740523,0.1054478,97355.0,97353.0,0.10188521]
[1732925740756,0.0027308,97355.0,97353.0,0.09288521]
[1732925740988,0.102717,97354.0,97353.0,0.09288521]
[1732925741197,0.103717,97354.0,97353.0,0.10188521]
[1732925741416,0.103717,97354.0,97353.0,0.09288521]
[1732925741620,0.103717,97354.0,97353.0,0.10788521]
[1732925742127,0.102717,97354.0,97353.0,0.09888521]
[1732925742319,0.150717,97354.0,97353.0,0.09888521]
[1732925742542,0.22843548,97354.0,97353.0,0.006]
[1732925742786,0.226617,97354.0,97353.0,0.006]
[1732925743459,0.148818,97353.0,97352.0,5.977e-05]
[1732925743678,0.15063648,97353.0,97352.0,5.977e-05]
[1732925745217,0.15063648,97353.0,97352.0,0.00505977]
[1732925745429,0.15063648,97353.0,97352.0,0.00705977]
[1732925748405,0.15964951,97353.0,97352.0,0.00705977]
[1732925750013,0.23614951,97353.0,97352.0,0.00705977]
[1732925750260,0.23433103,97353.0,97352.0,0.00705977]
[1732925750972,0.23433103,97353.0,97352.0,5.977e-05]
[1732925751186,0.23433103,97353.0,97352.0,0.00305977]
[1732925751405,0.21621744,97353.0,97352.0,0.00305977]
[1732925751612,0.21621744,97353.0,97352.0,5.977e-05]
[1732925752102,0.21621744,97353.0,97352.0,0.00305977]
[1732925752103,0.22694714,97353.0,97352.0,0.00305977]
[1732925755791,0.22694714,97353.0,97352.0,7.7e-07]
[1732925755792,0.37694714,97353.0,97352.0,7.7e-07]
[1732925756031,0.41690299,97353.0,97352.0,7.7e-07]
[1732925756248,0.50907572,97353.0,97352.0,7.7e-07]
[1732925756476,0.41690299,97353.0,97352.0,7.7e-07]
[1732925756724,0.5197482,97353.0,97352.0,7.7e-07]
[1732925756937,0.5197482,97353.0,97336.0,0.0008653]
[1732925756938,0.102735,97337.0,97336.0,0.0008653]
[1732925757169,0.22845348,97337.0,97336.0,0.0008653]
[1732925757406,0.38554876,97337.0,97336.0,0.0008653]
[1732925758148,0.226646,97327.0,97326.0,0.0011033]
[1732925758632,0.23552977,97327.0,97326.0,0.0011033]
[1732925760999,0.38552977,97327.0,97326.0,0.0011033]
[1732925763358,0.38752977,97327.0,97326.0,0.0011033]
[1732925763578,0.39661411,97327.0,97326.0,0.0011033]
[1732925763806,0.40361411,97327.0,97326.0,0.0021033]
[1732925764265,0.40461411,97327.0,97326.0,0.0018654]
[1732925764704,0.40361411,97327.0,97326.0,0.0018654]
[1732925764922,0.40561411,97327.0,97326.0,0.0018654]
[1732925765402,0.32911411,97327.0,97326.0,0.0018654]
[1732925765622,0.40481411,97327.0,97326.0,0.0018654]
[1732925767031,0.40481411,97327.0,97326.0,0.001755]
[1732925773353,0.65481411,97327.0,97326.0,0.001755]
[1732925773566,0.66437547,97327.0,97326.0,0.001755]
[1732925774566,0.76720693,97327.0,97326.0,0.001755]
[1732925776435,0.66437547,97327.0,97326.0,0.001755]
[1732925777628,1.36437547,97327.0,97326.0,0.001755]
[1732925779363,0.66437547,97327.0,97326.0,0.001755]
[1732925781489,0.76722068,97327.0,97326.0,0.001755]
[1732925782149,0.76724213,97327.0,97326.0,0.001755]
[1732925782389,1.46724213,97327.0,97326.0,0.001755]
[1732925785589,1.46724878,97327.0,97326.0,0.001755]
[1732925786463,0.15,97326.0,97305.0,0.0017308]
[1732925786712,0.102762,97312.0,97305.0,0.0017308]
[1732925786970,0.11416994,97312.0,97305.0,0.0017308]
[1732925787205,0.12297935,97312.0,97305.0,0.0017308]
[1732925788115,0.12297935,97312.0,97311.0,0.00079836]
[1732925789713,0.12116087,97312.0,97311.0,0.23034357]
[1732925790686,0.12116087,97312.0,97311.0,0.07939836]
[1732925792017,0.12116087,97312.0,97311.0,0.08039836]
[1732925792251,0.12116087,97312.0,97311.0,0.08139836]
[1732925792477,0.12116087,97312.0,97311.0,0.08039836]
[1732925792697,0.12116087,97312.0,97311.0,0.08239836]
[1732925792938,0.12116087,97312.0,97311.0,0.08439836]
[1732925793814,0.12092297,97312.0,97311.0,0.08439836]
[1732925794447,0.12092297,97312.0,97311.0,0.08526386]
[1732925796284,0.12092297,97312.0,97311.0,0.00666386]
[1732925796504,0.12274145,97312.0,97311.0,0.00666386]
[1732925797868,0.13811295,97312.0,97311.0,0.00666386]
[1732925798100,0.13811295,97312.0,97311.0,0.00466386]
[1732925798576,0.13811295,97312.0,97311.0,0.00266386]
[1732925798795,0.13811295,97312.0,97311.0,0.00366386]
[1732925799294,0.13629447,97312.0,97311.0,0.00366386]
[1732925799509,0.13811295,97312.0,97311.0,0.08196386]
[1732925801578,0.13811774,97312.0,97311.0,0.08196386]
[1732925803423,0.13811774,97312.0,97311.0,0.00366386]
[1732925804617,0.12274653,97312.0,97311.0,0.00366386]
[1732925804824,0.13811771,97312.0,97311.0,0.00366386]
[1732925808728,0.13629923,97312.0,97311.0,0.23410907]
[1732925808944,0.03353723,97312.0,97311.0,0.33687207]
[1732925809193,0.01816604,97312.0,97311.0,0.33687207]
[1732925809649,0.00960699,97312.0,97311.0,0.33687207]
[1732925810582,0.00960699,97312.0,97311.0,0.23410907]
[1732925811049,0.01841207,97312.0,97311.0,0.23410907]
[1732925811370,0.00960699,97312.0,97311.0,0.23410907]
[1732925811601,0.01841188,97312.0,97311.0,0.23410907]
[1732925812062,0.01841188,97312.0,97311.0,0.33687207]
[1732925812312,0.12117388,97312.0,97311.0,0.00366386]
[1732925813468,0.12117388,97312.0,97311.0,0.10650907]
[1732925813631,0.01841188,97312.0,97311.0,0.23410907]
[1732925814073,0.12117218,97312.0,97311.0,0.23410907]
[1732925814284,0.01841018,97312.0,97311.0,0.23410907]
[1732925814708,0.12117218,97312.0,97311.0,0.23410907]
[1732925817286,0.01841018,97312.0,97311.0,0.23410907]
[1732925818635,0.12117218,97312.0,97311.0,0.23410907]
[1732925818845,0.01841018,97312.0,97311.0,0.23410907]
[1732925819287,0.12117218,97312.0,97311.0,0.23410907]
[1732925820418,0.12290338,97312.0,97311.0,0.23410907]
[1732925820629,0.12290332,97312.0,97311.0,0.23410907]
[1732925821043,0.02014132,97312.0,97311.0,0.23410907]
[1732925821274,0.12290332,97312.0,97311.0,0.23410907]
[1732925821685,0.02014132,97312.0,97311.0,0.33687207]
[1732925821899,0.02014114,97312.0,97311.0,0.33687207]
[1732925822138,0.0017312,97312.0,97311.0,0.33687207]
[1732925822360,0.0017312,97312.0,97311.0,0.3676724]
[1732925823024,0.0017312,97312.0,97311.0,0.3666724]
[1732925823246,0.0017312,97312.0,97311.0,0.38792032]
[1732925823474,0.0017312,97312.0,97311.0,0.33787207]
[1732925823732,0.0017312,97312.0,97311.0,0.35511999]
[1732925823981,0.0017312,97312.0,97311.0,0.33487207]
[1732925824196,0.0017312,97312.0,97311.0,0.32943161]
[1732925824426,0.0017312,97312.0,97311.0,0.34467733]
[1732925824849,0.0027312,97312.0,97311.0,0.35167733]
[1732925826988,0.0027312,97312.0,97311.0,0.33243161]
[1732925827210,0.0027312,97312.0,97311.0,0.35166599]
[1732925827416,0.0027312,97312.0,97311.0,0.38466599]
[1732925828326,0.0027312,97312.0,97311.0,0.54466599]
[1732925828559,0.0017312,97312.0,97311.0,0.53766599]
[1732925828821,0.0027312,97312.0,97311.0,0.54266599]
[1732925829045,0.0027312,97312.0,97311.0,0.54866599]
[1732925829489,0.0027312,97312.0,97311.0,0.54266599]
[1732925829720,0.0027312,97312.0,97311.0,0.54866599]
[1732925830149,0.0017312,97312.0,97311.0,0.53366599]
[1732925830374,0.0017312,97312.0,97311.0,0.54264248]
[1732925830581,0.0017312,97312.0,97311.0,0.55064248]
[1732925831024,0.0017312,97312.0,97311.0,0.55964248]
[1732925832322,0.0017312,97312.0,97311.0,0.56050808]
[1732925833545,0.0017312,97312.0,97311.0,0.54129721]
[1732925833781,0.0017312,97312.0,97311.0,0.56049854]
[1732925840077,0.0017312,97312.0,97311.0,0.55049854]
[1732925840310,0.0017312,97312.0,97311.0,0.56049854]
[1732925846431,0.0017312,97312.0,97311.0,0.59891617]
[1732925847489,0.001731,97325.0,97324.0,0.112749]
[1732925847704,0.001731,97325.0,97324.0,0.37653148]
[1732925847933,0.001731,97325.0,97324.0,0.37471317]
[1732925848833,0.001731,97325.0,97324.0,0.38671317]
[1732925851733,0.001731,97325.0,97324.0,0.19546417]
[1732925851945,0.001731,97325.0,97324.0,0.17246417]
[1732925851946,0.227379,97325.0,97324.0,0.17246417]
[1732925852162,0.2362633,97325.0,97324.0,0.06961896]
[1732925852385,0.2362633,97325.0,97324.0,0.03120133]
[1732925852857,0.2362633,97325.0,97324.0,0.008]
[1732925853070,0.2362633,97325.0,97324.0,0.01923435]
[1732925853506,0.2372633,97325.0,97324.0,0.01923435]
[1732925854307,0.2362633,97325.0,97324.0,0.01923435]
[1732925854755,0.0106153,97325.0,97324.0,0.12607956]
[1732925854977,0.0106153,97325.0,97324.0,0.22882856]
[1732925855228,0.0106153,97325.0,97324.0,0.26928696]
[1732925855461,0.001731,97325.0,97324.0,0.26928696]
[1732925855700,0.001731,97325.0,97324.0,0.26728696]
[1732925856139,0.001731,97325.0,97324.0,0.26528696]
[1732925856590,0.001731,97325.0,97324.0,0.16653796]
[1732925856804,0.181879,97325.0,97324.0,0.16253796]
[1732925857017,0.181879,97325.0,97324.0,0.17053796]
[1732925857018,0.11449862,97325.0,97324.0,0.17053796]
[1732925857230,0.11449862,97325.0,97324.0,0.16853796]
[1732925857470,0.01175062,97325.0,97324.0,0.16853796]
[1732925857681,0.11449862,97325.0,97324.0,0.13407956]
[1732925857916,0.105479,97325.0,97324.0,0.13407956]
[1732925858149,0.002731,97325.0,97324.0,0.13407956]
[1732925858384,0.11449719,97325.0,97324.0,0.13407956]
[1732925862603,0.15999719,97325.0,97324.0,0.13407956]
[1732925865339,0.23839719,97325.0,97324.0,0.03123435]
[1732925865799,0.23839719,97325.0,97324.0,0.012]
[1732925866460,0.102761,97313.0,97312.0,0.0008656]
[1732925866716,0.102761,97313.0,97312.0,0.1229321]
[1732925866928,0.11177634,97313.0,97312.0,0.1229321]
[1732925867904,0.11177634,97313.0,97312.0,0.1279321]
[1732925868814,0.11277634,97313.0,97312.0,0.1369321]
[1732925869041,0.11277634,97313.0,97312.0,0.13692519]
[1732925872177,0.11277634,97313.0,97312.0,0.11771081]
[1732925872391,0.11277634,97313.0,97312.0,0.13692031]
[1732925875560,0.11277634,97313.0,97312.0,0.13692359]
[1732925875772,0.16237634,97313.0,97312.0,0.13692359]
[1732925878892,0.16237634,97313.0,97312.0,0.1369327]
[1732925881523,0.16237634,97313.0,97312.0,0.17541277]
[1732925883603,0.16237634,97313.0,97312.0,0.17542607]
[1732925883813,0.16237634,97313.0,97312.0,0.13694923]
[1732925884043,0.16237634,97313.0,97312.0,0.20620754]
[1732925884475,0.01001534,97313.0,97312.0,0.33196954]
[1732925884916,0.001,97313.0,97312.0,0.24347281]
[1732925886053,0.001,97313.0,97312.0,0.33195813]
[1732925887034,0.001,97313.0,97312.0,0.46275813]
[1732925887277,0.001731,97325.0,97324.0,0.125749]
[1732925887514,0.001731,97325.0,97324.0,0.20559421]
[1732925887749,0.001731,97325.0,97324.0,0.23041257]
[1732925887994,0.001731,97325.0,97324.0,0.31009421]
[1732925889237,0.001731,97325.0,97324.0,0.31409421]
[1732925889468,0.001731,97325.0,97324.0,0.32209421]
[1732925889928,0.001731,97325.0,97324.0,0.33209421]
[1732925890840,0.001731,97325.0,97324.0,0.32809421]
[1732925891270,0.001731,97325.0,97324.0,0.33409421]
[1732925891482,0.001731,97325.0,97324.0,0.32609421]
[1732925891714,0.001731,97325.0,97324.0,0.32009421]
[1732925891942,0.001731,97325.0,97324.0,0.33709421]
[1732925892191,0.001731,97325.0,97324.0,0.32809421]
[1732925892453,0.001731,97325.0,97324.0,0.32909421]
[1732925892680,0.001731,97325.0,97324.0,0.53639421]
[1732925892925,0.001731,97325.0,97324.0,0.52739421]
[1732925893172,0.001731,97327.0,97326.0,0.285747]
[1732925893396,0.001731,97327.0,97326.0,0.38859221]
[1732925893896,0.001731,97327.0,97326.0,0.47009221]
[1732925894319,0.001731,97327.0,97326.0,0.47809221]
[1732925894955,0.001731,97327.0,97326.0,0.48709221]
[1732925896543,0.001731,97327.0,97326.0,0.47709221]
[1732925896753,0.001731,97327.0,97326.0,0.48709221]
[1732925897624,0.001731,97327.0,97326.0,0.47709221]
[1732925899918,0.001731,97327.0,97326.0,0.22259221]
[1732925905112,0.001731,97327.0,97326.0,0.24559221]
[1732925906031,0.001731,97327.0,97326.0,0.25559221]
[1732925906675,0.001731,97327.0,97326.0,0.33489221]
[1732925909238,0.001731,97327.0,97326.0,0.30968199]
[1732925911075,0.001731,97327.0,97326.0,0.23038199]
[1732925912475,0.001731,97327.0,97326.0,0.22038199]
[1732925913241,0.001731,97327.0,97326.0,0.23038199]
[1732925914702,0.001731,97327.0,97326.0,0.15284521]
[1732925914932,0.001731,97327.0,97326.0,0.25741042]
[1732925915175,0.001731,97327.0,97326.0,0.25559221]
[1732925916848,0.001731,97327.0,97326.0,0.23287388]
[1732925918749,0.001731,97327.0,97326.0,0.20987388]
[1732925918977,0.001731,97327.0,97326.0,0.21169208]
[1732925922777,0.001731,97327.0,97326.0,0.19987388]
[1732925925289,0.001731,97327.0,97326.0,0.20073968]
[1732925927960,0.001731,97327.0,97326.0,0.20255815]
[1732925929557,0.001731,97327.0,97326.0,0.27765815]
[1732925929766,0.001731,97327.0,97326.0,0.27583968]
[1732925930883,0.001731,97327.0,97326.0,0.29883968]
[1732925931113,0.001731,97327.0,97326.0,0.30883968]
[1732925932025,0.0017308,97336.0,97335.0,0.102737]
[1732925932275,0.0017308,97336.0,97335.0,0.20740043]
[1732925933191,0.0017308,97336.0,97335.0,0.21240043]
[1732925934816,0.0017308,97336.0,97335.0,0.22310709]
[1732925935053,0.0017308,97336.0,97335.0,0.23028887]
[1732925937111,0.0017308,97336.0,97335.0,0.25328887]
[1732925939348,0.0017308,97336.0,97335.0,0.26328887]
[1732925939562,0.0017308,97336.0,97335.0,0.33838887]
[1732925940913,0.0017308,97336.0,97335.0,0.32938887]
[1732925941177,0.0017308,97336.0,97335.0,0.32438887]
[1732925941395,0.0017308,97336.0,97335.0,0.33838887]
[1732925941612,0.0017308,97336.0,97335.0,0.31868221]
[1732925941847,0.0017308,97336.0,97335.0,0.32768221]
[1732925942303,0.0017308,97336.0,97335.0,0.32268221]
[1732925942764,0.0017308,97336.0,97335.0,0.33168221]
[1732925944829,0.0017308,97336.0,97335.0,0.24658221]
[1732925948931,0.0017308,97336.0,97335.0,0.12084521]
[1732925949178,0.1044668,97336.0,97335.0,0.12084521]
[1732925949451,0.11362619,97336.0,97335.0,0.12084521]
[1732925949886,0.11544467,97336.0,97335.0,0.12084521]
[1732925950333,0.11544467,97336.0,97335.0,0.11184521]
[1732925950552,0.11544467,97336.0,97335.0,0.10284521]
[1732925950808,0.11544467,97336.0,97335.0,0.11784521]
[1732925954136,0.11362619,97336.0,97335.0,0.11784521]
[1732925954844,0.11362619,97336.0,97335.0,0.015]
[1732925954845,0.16174467,97336.0,97335.0,0.015]
[1732925955058,0.24344467,97336.0,97335.0,0.015]
[1732925955271,0.24162619,97336.0,97335.0,0.015]
[1732925956627,0.24162619,97336.0,97335.0,0.009]
[1732925956861,0.24162619,97336.0,97335.0,0.01]
[1732925957105,0.24162619,97336.0,97335.0,0.001]
[1732925957615,0.24162619,97336.0,97335.0,0.002]
[1732925961268,0.23924116,97336.0,97335.0,0.002]
[1732925983766,0.15754116,97336.0,97335.0,0.002]
[1732925983979,0.15935964,97336.0,97335.0,0.002]
[1732925986389,0.1586903,97336.0,97335.0,0.002]
[1732925987271,0.1123903,97336.0,97335.0,0.002]
[1732925994423,0.1123903,97336.0,97335.0,0.0028658]
[1732925994648,0.1063903,97336.0,97335.0,0.0028658]
[1732925994861,0.1541903,97336.0,97335.0,0.0028658]
[1732925996024,0.2292903,97336.0,97335.0,0.0028658]
[1732925996232,0.22747182,97336.0,97335.0,0.0028658]
[1732925996667,0.46945291,97336.0,97335.0,0.0028658]
[1732925996901,0.37747182,97336.0,97335.0,0.0028658]
[1732925997598,0.51544346,97336.0,97335.0,0.0028658]
[1732925999809,0.37747182,97336.0,97335.0,0.0028658]
[1732926004936,0.3886279,97336.0,97335.0,0.0028658]
[1732926005419,0.51143018,97336.0,97335.0,8e-07]
[1732926005648,0.81885118,97336.0,97335.0,8e-07]
[1732926005873,0.54212193,97336.0,97335.0,8e-07]
[1732926006095,0.54385353,97336.0,97335.0,8e-07]
[1732926007007,0.54485353,97336.0,97335.0,8e-07]
[1732926007252,0.54685353,97336.0,97335.0,8e-07]
[1732926007473,0.54685353,97336.0,97327.0,0.0008658]
[1732926007474,0.01,97328.0,97327.0,0.0008658]
[1732926007688,0.39156348,97328.0,97327.0,0.0008658]